[Event "Late-Titled-Tuesday-Blitz-May-14-2024"]
[Site "Chess.com"]
[Date "2024.05.14"]
[Round "4"]
[White "WPWPWP-2015"]
[Black "NateSolon"]
[Result "1-0"]
[WhiteElo "2436"]
[BlackElo "2655"]
[TimeControl "180+1"]
[EndTime "14:39:37 PDT"]
[Termination "WPWPWP-2015 won by checkmate"]

1. e4 {[%clk 0:03:00.9]} 1... c5 {[%clk 0:02:59.8]} 2. Nf3 {[%clk 0:03:00.2]}
2... Nf6 {[%clk 0:03:00.1]} 3. e5 {[%clk 0:02:57.4]} 3... Nd5 {[%clk 0:03:00.3]}
4. Nc3 {[%clk 0:02:57.2]} 4... e6 {[%clk 0:03:00.6]} 5. g3 {[%clk 0:02:54.6]}
5... Nc6 {[%clk 0:03:00.3]} 6. Bg2 {[%clk 0:02:54.2]} 6... d6 {[%clk 0:03:00.7]}
7. exd6 {[%clk 0:02:48.6]} 7... Bxd6 {[%clk 0:03:01.6]} 8. O-O {[%clk
0:02:48.1]} 8... O-O {[%clk 0:03:01.6]} 9. d3 {[%clk 0:02:44.3]} 9... Nxc3
{[%clk 0:02:58.2]} 10. bxc3 {[%clk 0:02:45.2]} 10... b6 {[%clk 0:02:44.4]} 11.
Ng5 {[%clk 0:02:38.7]} 11... Bb7 {[%clk 0:02:42.3]} 12. Qh5 {[%clk 0:02:36.2]}
12... h6 {[%clk 0:02:42.1]} 13. Ne4 {[%clk 0:02:35.9]} 13... Be7 {[%clk
0:02:29.9]} 14. Be3 {[%clk 0:02:24.8]} 14... f5 {[%clk 0:02:21.9]} 15. Nd2
{[%clk 0:02:23.9]} 15... Bf6 {[%clk 0:02:22.1]} 16. Nb1 {[%clk 0:02:12.9]} 16...
Qd7 {[%clk 0:02:18.7]} 17. a4 {[%clk 0:02:10.6]} 17... Ne5 {[%clk 0:02:14.5]}
18. a5 {[%clk 0:02:03.5]} 18... Bxg2 {[%clk 0:02:09.8]} 19. Kxg2 {[%clk
0:02:04.4]} 19... Qc6+ {[%clk 0:02:09.6]} 20. f3 {[%clk 0:01:58.2]} 20... b5
{[%clk 0:01:57.5]} 21. a6 {[%clk 0:01:29.7]} 21... Rad8 {[%clk 0:01:54.7]} 22.
Ra3 {[%clk 0:01:19.8]} 22... b4 {[%clk 0:01:40.9]} 23. Ra5 {[%clk 0:01:16.8]}
23... Nd7 {[%clk 0:01:31.1]} 24. c4 {[%clk 0:01:15.4]} 24... Be5 {[%clk
0:01:22.4]} 25. Nd2 {[%clk 0:01:09.8]} 25... Bc7 {[%clk 0:01:18.6]} 26. Raa1
{[%clk 0:01:01.9]} 26... Nf6 {[%clk 0:01:16.2]} 27. Qg6 {[%clk 0:00:48.6]} 27...
Be5 {[%clk 0:01:09.1]} 28. Bxh6 {[%clk 0:00:38.9]} 28... Ne8 {[%clk 0:01:02]}
29. Bg5 {[%clk 0:00:37]} 29... Bxa1 {[%clk 0:00:52]} 30. Bxd8 {[%clk 0:00:34.5]}
30... Bd4 {[%clk 0:00:41.6]} 31. Bg5 {[%clk 0:00:33]} 31... Qxa6 {[%clk
0:00:38.8]} 32. Nb3 {[%clk 0:00:28.7]} 32... Qa2 {[%clk 0:00:37.1]} 33. Nxd4
{[%clk 0:00:28.6]} 33... cxd4 {[%clk 0:00:38]} 34. Rf2 {[%clk 0:00:29]} 34...
Nf6 {[%clk 0:00:28.6]} 35. h4 {[%clk 0:00:26.8]} 35... Qa4 {[%clk 0:00:24.1]}
36. h5 {[%clk 0:00:26.2]} 36... Qe8 {[%clk 0:00:23]} 37. Re2 {[%clk 0:00:26.4]}
37... Qxg6 {[%clk 0:00:19.5]} 38. hxg6 {[%clk 0:00:25.8]} 38... Re8 {[%clk
0:00:20.1]} 39. Re1 {[%clk 0:00:22.5]} 39... Nd7 {[%clk 0:00:18.1]} 40. Ra1
{[%clk 0:00:20.9]} 40... Ra8 {[%clk 0:00:18.3]} 41. Ra6 {[%clk 0:00:20.4]} 41...
Nc5 {[%clk 0:00:16.3]} 42. Rc6 {[%clk 0:00:20.4]} 42... a5 {[%clk 0:00:14.1]}
43. Rxc5 {[%clk 0:00:20.3]} 43... a4 {[%clk 0:00:14.7]} 44. Bc1 {[%clk
0:00:15.7]} 44... a3 {[%clk 0:00:12.9]} 45. Rb5 {[%clk 0:00:15.3]} 45... a2
{[%clk 0:00:12.3]} 46. Bb2 {[%clk 0:00:15.7]} 46... a1=Q {[%clk 0:00:11.2]} 47.
Bxa1 {[%clk 0:00:15.8]} 47... Rxa1 {[%clk 0:00:11.6]} 48. Rb8# {[%clk
0:00:15.8]} 1-0

[Event "Late-Titled-Tuesday-Blitz-May-14-2024"]
[Site "Chess.com"]
[Date "2024.05.14"]
[Round "4"]
[White "laskakid"]
[Black "Malev212"]
[Result "0-1"]
[WhiteElo "2387"]
[BlackElo "2614"]
[TimeControl "180+1"]
[EndTime "14:39:42 PDT"]
[Termination "Malev212 won by resignation"]

1. e4 {[%clk 0:03:00.9]} 1... Nc6 {[%clk 0:02:54.2]} 2. Nf3 {[%clk 0:03:00.4]}
2... e5 {[%clk 0:02:53.9]} 3. d3 {[%clk 0:03:00.3]} 3... Bc5 {[%clk 0:02:51.4]}
4. g3 {[%clk 0:02:57.4]} 4... d6 {[%clk 0:02:50.7]} 5. Bg2 {[%clk 0:02:57.4]}
5... h5 {[%clk 0:02:49.7]} 6. O-O {[%clk 0:02:54.8]} 6... h4 {[%clk 0:02:49.6]}
7. gxh4 {[%clk 0:02:37.9]} 7... Bg4 {[%clk 0:02:47.3]} 8. Bg5 {[%clk 0:02:32.6]}
8... f6 {[%clk 0:02:46.4]} 9. Be3 {[%clk 0:02:32.3]} 9... Rxh4 {[%clk
0:02:42.3]} 10. Nbd2 {[%clk 0:02:27.8]} 10... Nge7 {[%clk 0:02:36.1]} 11. c3
{[%clk 0:02:13.8]} 11... Bb6 {[%clk 0:02:18.7]} 12. Qb3 {[%clk 0:02:09.1]} 12...
Rh7 {[%clk 0:02:12.8]} 13. d4 {[%clk 0:01:58.2]} 13... Ng6 {[%clk 0:02:01]} 14.
Qg8+ {[%clk 0:01:49.8]} 14... Nf8 {[%clk 0:01:56.5]} 15. Qb3 {[%clk 0:01:40.4]}
15... Qd7 {[%clk 0:01:53.6]} 16. d5 {[%clk 0:01:00.9]} 16... Ne7 {[%clk
0:01:49]} 17. c4 {[%clk 0:00:57]} 17... Bh3 {[%clk 0:01:41.8]} 18. Bxb6 {[%clk
0:00:44.6]} 18... axb6 {[%clk 0:01:37.7]} 19. Ne1 {[%clk 0:00:43.1]} 19... Bxg2
{[%clk 0:01:34.9]} 20. Nxg2 {[%clk 0:00:42.3]} 20... Qh3 {[%clk 0:01:34.4]} 21.
Qxh3 {[%clk 0:00:41.5]} 21... Rxh3 {[%clk 0:01:33.1]} 22. f4 {[%clk 0:00:35]}
22... Nd7 {[%clk 0:01:17.5]} 23. f5 {[%clk 0:00:30.7]} 23... Kf7 {[%clk
0:01:16.7]} 24. Rf3 {[%clk 0:00:30.5]} 24... Rxf3 {[%clk 0:01:12.8]} 25. Nxf3
{[%clk 0:00:30.1]} 25... Nc5 {[%clk 0:01:13.1]} 26. Nd2 {[%clk 0:00:27.8]} 26...
g6 {[%clk 0:01:12.2]} 27. fxg6+ {[%clk 0:00:26.6]} 27... Kxg6 {[%clk 0:01:12]}
28. Kf2 {[%clk 0:00:27]} 28... Rh8 {[%clk 0:01:09.7]} 29. Kg3 {[%clk 0:00:26.7]}
29... f5 {[%clk 0:01:08.5]} 30. Nh4+ {[%clk 0:00:24.1]} 30... Kg5 {[%clk
0:01:04.8]} 31. Nxf5 {[%clk 0:00:24.3]} 31... Nxf5+ {[%clk 0:01:01.7]} 32. exf5
{[%clk 0:00:24.6]} 32... Kxf5 {[%clk 0:01:00.9]} 33. Rf1+ {[%clk 0:00:24]} 33...
Kg6 {[%clk 0:01:00.5]} 34. h4 {[%clk 0:00:23.6]} 34... Nd3 {[%clk 0:00:49.8]}
35. b3 {[%clk 0:00:22.2]} 35... Nf4 {[%clk 0:00:48.5]} 36. Ne4 {[%clk
0:00:21.7]} 36... Kf5 {[%clk 0:00:48]} 37. Ng5 {[%clk 0:00:21.4]} 37... Rg8
{[%clk 0:00:42.2]} 38. Kf3 {[%clk 0:00:16.9]} 38... c6 {[%clk 0:00:40]} 39. dxc6
{[%clk 0:00:16.2]} 39... bxc6 {[%clk 0:00:40]} 40. b4 {[%clk 0:00:15.9]} 40...
d5 {[%clk 0:00:39.9]} 41. cxd5 {[%clk 0:00:14.6]} 41... cxd5 {[%clk 0:00:39.9]}
42. a4 {[%clk 0:00:14.6]} 42... Rc8 {[%clk 0:00:38.8]} 43. a5 {[%clk 0:00:13.3]}
43... Rc3+ {[%clk 0:00:38.2]} 44. Kf2 {[%clk 0:00:13.6]} 44... bxa5 {[%clk
0:00:37.3]} 45. bxa5 {[%clk 0:00:13.6]} 45... Ra3 {[%clk 0:00:37.2]} 46. Re1
{[%clk 0:00:10.4]} 46... Nd3+ {[%clk 0:00:32.4]} 47. Ke2 {[%clk 0:00:09.9]}
47... Nxe1 {[%clk 0:00:32]} 48. Kxe1 {[%clk 0:00:10.4]} 48... Rxa5 {[%clk
0:00:32]} 49. Nf3 {[%clk 0:00:07.8]} 49... Kf4 {[%clk 0:00:30.3]} 50. Ke2 {[%clk
0:00:06.4]} 50... Ra2+ {[%clk 0:00:28.8]} 51. Nd2 {[%clk 0:00:06.6]} 51... Rxd2+
{[%clk 0:00:28]} 52. Kxd2 {[%clk 0:00:06.9]} 52... Kg4 {[%clk 0:00:28.4]} 0-1

[Event "Late-Titled-Tuesday-Blitz-May-14-2024"]
[Site "Chess.com"]
[Date "2024.05.14"]
[Round "4"]
[White "Davidalhesa2007"]
[Black "pirulillo"]
[Result "0-1"]
[WhiteElo "1934"]
[BlackElo "2417"]
[TimeControl "180+1"]
[EndTime "14:39:43 PDT"]
[Termination "pirulillo won by checkmate"]

1. d4 {[%clk 0:02:59.6]} 1... Nf6 {[%clk 0:02:59.2]} 2. Nc3 {[%clk 0:03:00]}
2... d5 {[%clk 0:02:58.8]} 3. Bf4 {[%clk 0:03:00.4]} 3... g6 {[%clk 0:02:58.7]}
4. e3 {[%clk 0:02:59.8]} 4... Bg7 {[%clk 0:02:58.7]} 5. h4 {[%clk 0:03:00.2]}
5... h5 {[%clk 0:02:58.6]} 6. Nf3 {[%clk 0:03:00.6]} 6... O-O {[%clk 0:02:58.6]}
7. Qd2 {[%clk 0:03:00.5]} 7... c5 {[%clk 0:02:58.5]} 8. dxc5 {[%clk 0:03:00]}
8... e6 {[%clk 0:02:52.5]} 9. O-O-O {[%clk 0:02:37]} 9... Qa5 {[%clk 0:02:45.9]}
10. Bd6 {[%clk 0:02:29.9]} 10... Rd8 {[%clk 0:02:42.8]} 11. Nd4 {[%clk
0:02:13.7]} 11... Rxd6 {[%clk 0:02:04.2]} 12. cxd6 {[%clk 0:02:11]} 12... a6
{[%clk 0:02:04.2]} 13. Nb3 {[%clk 0:01:56.8]} 13... Qd8 {[%clk 0:02:02.1]} 14.
e4 {[%clk 0:01:53.8]} 14... Qxd6 {[%clk 0:01:35.4]} 15. exd5 {[%clk 0:01:50.4]}
15... e5 {[%clk 0:01:35.9]} 16. f3 {[%clk 0:01:37.1]} 16... Nbd7 {[%clk
0:01:28.1]} 17. Ne4 {[%clk 0:01:31.8]} 17... Nxe4 {[%clk 0:01:26.5]} 18. fxe4
{[%clk 0:01:32.7]} 18... Nf6 {[%clk 0:01:26.8]} 19. Bd3 {[%clk 0:01:22.1]} 19...
Bd7 {[%clk 0:01:25.9]} 20. Kb1 {[%clk 0:01:19.8]} 20... b6 {[%clk 0:01:15.6]}
21. Qe3 {[%clk 0:01:14.6]} 21... a5 {[%clk 0:01:12.6]} 22. c4 {[%clk 0:01:09.2]}
22... a4 {[%clk 0:01:10.6]} 23. Nd2 {[%clk 0:01:07.5]} 23... Ng4 {[%clk
0:01:07]} 24. Qg1 {[%clk 0:01:00.8]} 24... Bh6 {[%clk 0:01:06.4]} 25. Nf3 {[%clk
0:00:39.6]} 25... Qb4 {[%clk 0:00:55.8]} 26. a3 {[%clk 0:00:34.1]} 26... Qd6
{[%clk 0:00:48.4]} 27. Ng5 {[%clk 0:00:17.9]} 27... Rb8 {[%clk 0:00:44.4]} 28.
Be2 {[%clk 0:00:15.3]} 28... Bf8 {[%clk 0:00:36]} 29. Rc1 {[%clk 0:00:15]} 29...
Qc7 {[%clk 0:00:21.8]} 30. Rc3 {[%clk 0:00:10]} 30... Bc5 {[%clk 0:00:21.1]} 31.
Qf1 {[%clk 0:00:08.1]} 31... Be8 {[%clk 0:00:20.7]} 32. Bxg4 {[%clk 0:00:06.8]}
32... hxg4 {[%clk 0:00:20.6]} 33. h5 {[%clk 0:00:07]} 33... Qe7 {[%clk
0:00:18.8]} 34. Qc1 {[%clk 0:00:03.7]} 34... f6 {[%clk 0:00:16.4]} 35. Ne6
{[%clk 0:00:02.7]} 35... g5 {[%clk 0:00:16.2]} 36. h6 {[%clk 0:00:02.9]} 36...
Bg6 {[%clk 0:00:14.7]} 37. Nxc5 {[%clk 0:00:02.5]} 37... Qxc5 {[%clk 0:00:14.4]}
38. Qe1 {[%clk 0:00:00.4]} 38... b5 {[%clk 0:00:13]} 39. Ka2 {[%clk 0:00:01.3]}
39... b4 {[%clk 0:00:12.3]} 40. axb4 {[%clk 0:00:02.2]} 40... Qxb4 {[%clk
0:00:12.4]} 41. Ra3 {[%clk 0:00:03.1]} 41... Qxb2# {[%clk 0:00:10.9]} 0-1

[Event "Late-Titled-Tuesday-Blitz-May-14-2024"]
[Site "Chess.com"]
[Date "2024.05.14"]
[Round "4"]
[White "Hrant_ChessMood"]
[Black "hblanco"]
[Result "1-0"]
[WhiteElo "2941"]
[BlackElo "2607"]
[TimeControl "180+1"]
[EndTime "14:39:47 PDT"]
[Termination "Hrant_ChessMood won by resignation"]

1. c4 {[%clk 0:02:57.4]} 1... e6 {[%clk 0:02:59.1]} 2. g3 {[%clk 0:02:56.8]}
2... d5 {[%clk 0:02:58.6]} 3. Bg2 {[%clk 0:02:57.7]} 3... Nf6 {[%clk 0:02:59.1]}
4. Nf3 {[%clk 0:02:57.3]} 4... d4 {[%clk 0:02:58.1]} 5. O-O {[%clk 0:02:57.2]}
5... Nc6 {[%clk 0:02:58.3]} 6. d3 {[%clk 0:02:52.8]} 6... h6 {[%clk 0:02:53.4]}
7. e3 {[%clk 0:02:51.9]} 7... Bc5 {[%clk 0:02:52.5]} 8. exd4 {[%clk 0:02:46.1]}
8... Nxd4 {[%clk 0:02:52.6]} 9. Nc3 {[%clk 0:02:43.8]} 9... O-O {[%clk
0:02:50.7]} 10. Be3 {[%clk 0:02:41.1]} 10... Re8 {[%clk 0:02:39.2]} 11. Re1
{[%clk 0:02:35.1]} 11... e5 {[%clk 0:02:30.6]} 12. Bxd4 {[%clk 0:02:24.3]} 12...
Bxd4 {[%clk 0:02:28.2]} 13. Nxd4 {[%clk 0:02:23.2]} 13... Qxd4 {[%clk
0:02:27.6]} 14. Nb5 {[%clk 0:01:54.4]} 14... Qb6 {[%clk 0:02:22.2]} 15. a4
{[%clk 0:01:50.2]} 15... a6 {[%clk 0:01:53.7]} 16. c5 {[%clk 0:01:50.2]} 16...
Qxc5 {[%clk 0:01:26.1]} 17. Rc1 {[%clk 0:01:49.4]} 17... Qb6 {[%clk 0:01:15.8]}
18. Nxc7 {[%clk 0:01:48.1]} 18... Bd7 {[%clk 0:01:10.6]} 19. Nxa8 {[%clk
0:01:45.6]} 19... Rxa8 {[%clk 0:01:11.5]} 20. Rxe5 {[%clk 0:01:42.9]} 20... Qxb2
{[%clk 0:01:10.9]} 21. Re2 {[%clk 0:01:42.8]} 21... Qd4 {[%clk 0:01:05.3]} 22.
Bxb7 {[%clk 0:01:39.1]} 22... Rb8 {[%clk 0:01:00.6]} 23. Bxa6 {[%clk 0:01:38.8]}
23... Bg4 {[%clk 0:01:00.4]} 24. Bb5 {[%clk 0:01:32.3]} 24... Nd5 {[%clk
0:00:55]} 25. Re4 {[%clk 0:01:14.6]} 25... Qxe4 {[%clk 0:00:51.2]} 26. dxe4
{[%clk 0:01:13.3]} 26... Bxd1 {[%clk 0:00:51.5]} 27. Rxd1 {[%clk 0:01:14.2]}
27... Nc3 {[%clk 0:00:51.3]} 28. Rd4 {[%clk 0:01:09.2]} 28... Nxb5 {[%clk
0:00:45.7]} 29. Rb4 {[%clk 0:01:08.4]} 29... Kf8 {[%clk 0:00:46.2]} 30. axb5
{[%clk 0:01:07.6]} 30... Rb6 {[%clk 0:00:46.7]} 31. f4 {[%clk 0:01:06]} 31...
Ke7 {[%clk 0:00:47]} 32. Kf2 {[%clk 0:01:06]} 32... Kd6 {[%clk 0:00:47.3]} 33.
Ke3 {[%clk 0:01:04.5]} 33... Kc5 {[%clk 0:00:47.5]} 34. Rb1 {[%clk 0:01:04.9]}
34... Rxb5 {[%clk 0:00:43.9]} 35. Rxb5+ {[%clk 0:01:04.8]} 35... Kxb5 {[%clk
0:00:44.8]} 36. Kd4 {[%clk 0:01:05.7]} 36... Kc6 {[%clk 0:00:45.3]} 37. Ke5
{[%clk 0:01:05.7]} 37... Kc5 {[%clk 0:00:34.4]} 38. g4 {[%clk 0:01:04]} 38...
Kc6 {[%clk 0:00:31.9]} 39. h4 {[%clk 0:01:00.5]} 39... Kd7 {[%clk 0:00:29.5]}
40. h5 {[%clk 0:00:58.2]} 40... Ke7 {[%clk 0:00:25.8]} 41. Kd5 {[%clk
0:00:58.4]} 41... Kd7 {[%clk 0:00:24.6]} 42. e5 {[%clk 0:00:57]} 42... Ke7
{[%clk 0:00:19.5]} 43. f5 {[%clk 0:00:52]} 43... Kd7 {[%clk 0:00:18.5]} 44. g5
{[%clk 0:00:39.6]} 44... Ke8 {[%clk 0:00:06.5]} 45. f6 {[%clk 0:00:34.1]} 45...
gxf6 {[%clk 0:00:06.4]} 46. gxh6 {[%clk 0:00:33.7]} 46... Kf8 {[%clk 0:00:06.6]}
47. exf6 {[%clk 0:00:33.2]} 47... Kg8 {[%clk 0:00:06.9]} 48. Kd6 {[%clk
0:00:33.7]} 48... Kh7 {[%clk 0:00:07]} 49. Ke7 {[%clk 0:00:34.1]} 1-0

[Event "Late-Titled-Tuesday-Blitz-May-14-2024"]
[Site "Chess.com"]
[Date "2024.05.14"]
[Round "4"]
[White "GiorgianBarbosa"]
[Black "chess_sharparchitect"]
[Result "0-1"]
[WhiteElo "2514"]
[BlackElo "2364"]
[TimeControl "180+1"]
[EndTime "14:39:48 PDT"]
[Termination "chess_sharparchitect won by resignation"]

1. e4 {[%clk 0:03:00]} 1... c5 {[%clk 0:02:57.9]} 2. Nf3 {[%clk 0:03:00.2]} 2...
d6 {[%clk 0:02:57.9]} 3. d4 {[%clk 0:03:00.5]} 3... cxd4 {[%clk 0:02:58.2]} 4.
Nxd4 {[%clk 0:03:01.4]} 4... Nf6 {[%clk 0:02:58.7]} 5. Nc3 {[%clk 0:03:01.8]}
5... a6 {[%clk 0:02:58.2]} 6. Rg1 {[%clk 0:03:00.9]} 6... e5 {[%clk 0:02:57.1]}
7. Nb3 {[%clk 0:02:59.6]} 7... h5 {[%clk 0:02:49.7]} 8. Bg5 {[%clk 0:02:57.5]}
8... Be6 {[%clk 0:02:44.8]} 9. Qd2 {[%clk 0:02:50.2]} 9... Nbd7 {[%clk
0:02:42.2]} 10. O-O-O {[%clk 0:02:50.1]} 10... b5 {[%clk 0:02:36.2]} 11. g3
{[%clk 0:02:41.8]} 11... Be7 {[%clk 0:02:06.5]} 12. Bxf6 {[%clk 0:02:35.1]}
12... Nxf6 {[%clk 0:02:03.5]} 13. f4 {[%clk 0:02:34.5]} 13... Bc4 {[%clk
0:01:54.4]} 14. fxe5 {[%clk 0:02:26.3]} 14... dxe5 {[%clk 0:01:52.8]} 15. Qg5
{[%clk 0:02:27.2]} 15... Qb6 {[%clk 0:01:44.2]} 16. Bxc4 {[%clk 0:01:55.3]}
16... bxc4 {[%clk 0:01:43.7]} 17. Nd2 {[%clk 0:01:38.5]} 17... Nxe4 {[%clk
0:01:17.9]} 18. Qxg7 {[%clk 0:01:25.1]} 18... Bf6 {[%clk 0:01:14.2]} 19. Qxh8+
{[%clk 0:01:24.1]} 19... Bxh8 {[%clk 0:01:13.1]} 20. Ndxe4 {[%clk 0:01:25]}
20... Rb8 {[%clk 0:01:02.7]} 21. Nd6+ {[%clk 0:01:17.5]} 21... Kf8 {[%clk
0:00:58.3]} 22. Nxc4 {[%clk 0:01:16]} 22... Qb4 {[%clk 0:00:43.7]} 23. Ne3
{[%clk 0:00:42.4]} 23... Qxb2+ {[%clk 0:00:41.3]} 24. Kd2 {[%clk 0:00:43.3]}
24... Rd8+ {[%clk 0:00:34.4]} 25. Ncd5 {[%clk 0:00:42.9]} 25... e4 {[%clk
0:00:30.7]} 26. Ke2 {[%clk 0:00:37.4]} 26... Bd4 {[%clk 0:00:28.4]} 27. Rgf1
{[%clk 0:00:26.9]} 27... Qb5+ {[%clk 0:00:24.9]} 28. c4 {[%clk 0:00:23.1]} 28...
Qc5 {[%clk 0:00:18.9]} 29. Rd2 {[%clk 0:00:17.5]} 29... Bxe3 {[%clk 0:00:18.8]}
30. Nxe3 {[%clk 0:00:18.4]} 30... Rxd2+ {[%clk 0:00:16.5]} 31. Kxd2 {[%clk
0:00:19.3]} 31... Qd4+ {[%clk 0:00:16.8]} 32. Ke2 {[%clk 0:00:19.2]} 32... Qd3+
{[%clk 0:00:17.2]} 33. Kf2 {[%clk 0:00:17.9]} 33... Qd2+ {[%clk 0:00:17.6]} 34.
Kg1 {[%clk 0:00:17.1]} 34... Qxe3+ {[%clk 0:00:18]} 35. Kg2 {[%clk 0:00:17.3]}
35... Qe2+ {[%clk 0:00:18]} 36. Rf2 {[%clk 0:00:17.6]} 36... Qxc4 {[%clk
0:00:18.1]} 37. Rf4 {[%clk 0:00:15.8]} 37... Qxa2+ {[%clk 0:00:17.5]} 38. Kh3
{[%clk 0:00:15.7]} 38... Qc2 {[%clk 0:00:17.1]} 39. Kh4 {[%clk 0:00:15.5]} 39...
a5 {[%clk 0:00:16.7]} 40. Rf5 {[%clk 0:00:14.6]} 40... a4 {[%clk 0:00:15.4]} 41.
Kg5 {[%clk 0:00:10.5]} 41... a3 {[%clk 0:00:14.6]} 42. Kf6 {[%clk 0:00:11.4]}
42... Qc6+ {[%clk 0:00:14.2]} 43. Ke5 {[%clk 0:00:11.2]} 43... Qe6+ {[%clk
0:00:14.1]} 44. Kf4 {[%clk 0:00:11.1]} 44... Qxf5+ {[%clk 0:00:14]} 45. Kxf5
{[%clk 0:00:12]} 45... e3 {[%clk 0:00:14.3]} 0-1

[Event "Late-Titled-Tuesday-Blitz-May-14-2024"]
[Site "Chess.com"]
[Date "2024.05.14"]
[Round "4"]
[White "LUISMIGUELOV"]
[Black "Siemba"]
[Result "0-1"]
[WhiteElo "2232"]
[BlackElo "2492"]
[TimeControl "180+1"]
[EndTime "14:39:51 PDT"]
[Termination "Siemba won on time"]

1. d4 {[%clk 0:02:04.9]} 1... Nf6 {[%clk 0:02:58.2]} 2. c3 {[%clk 0:02:05.3]}
2... b6 {[%clk 0:02:55.9]} 3. Bg5 {[%clk 0:02:05.6]} 3... Bb7 {[%clk 0:02:56.4]}
4. Nd2 {[%clk 0:02:05]} 4... e6 {[%clk 0:02:55.9]} 5. e4 {[%clk 0:02:02.7]} 5...
Be7 {[%clk 0:02:56.4]} 6. e5 {[%clk 0:02:02.4]} 6... Nd5 {[%clk 0:02:56.3]} 7.
Bxe7 {[%clk 0:02:02.4]} 7... Qxe7 {[%clk 0:02:57.2]} 8. Ngf3 {[%clk 0:02:00.4]}
8... O-O {[%clk 0:02:54.1]} 9. Bd3 {[%clk 0:02:00.1]} 9... Nf4 {[%clk
0:02:53.9]} 10. Bf1 {[%clk 0:01:58.9]} 10... c5 {[%clk 0:02:50.5]} 11. g3 {[%clk
0:01:59]} 11... Ng6 {[%clk 0:02:49.8]} 12. h4 {[%clk 0:01:56.6]} 12... cxd4
{[%clk 0:02:48.6]} 13. cxd4 {[%clk 0:01:56.6]} 13... Nc6 {[%clk 0:02:45.2]} 14.
h5 {[%clk 0:01:47.7]} 14... Ngxe5 {[%clk 0:02:33.6]} 15. dxe5 {[%clk 0:01:45.5]}
15... Nxe5 {[%clk 0:02:34.2]} 16. Bg2 {[%clk 0:01:45.3]} 16... Nd3+ {[%clk
0:02:33.3]} 17. Kf1 {[%clk 0:01:45]} 17... Qc5 {[%clk 0:02:33]} 18. Qe2 {[%clk
0:01:38.7]} 18... Ba6 {[%clk 0:02:32.2]} 19. Kg1 {[%clk 0:01:28.6]} 19... Rac8
{[%clk 0:02:22]} 20. Ne4 {[%clk 0:01:22.5]} 20... Qc2 {[%clk 0:02:20]} 21. Qxc2
{[%clk 0:01:15]} 21... Rxc2 {[%clk 0:02:20.9]} 22. h6 {[%clk 0:01:11.4]} 22...
f5 {[%clk 0:02:12.1]} 23. hxg7 {[%clk 0:01:00.1]} 23... Kxg7 {[%clk 0:02:09.9]}
24. Neg5 {[%clk 0:01:00.4]} 24... h6 {[%clk 0:02:09.3]} 25. Nh3 {[%clk
0:00:57.2]} 25... Rfc8 {[%clk 0:02:07.7]} 26. b3 {[%clk 0:00:54.3]} 26... Rb2
{[%clk 0:01:58.6]} 27. Bf1 {[%clk 0:00:51.1]} 27... Bb7 {[%clk 0:01:44]} 28. Bg2
{[%clk 0:00:45.5]} 28... Bxf3 {[%clk 0:01:21.6]} 29. Bxf3 {[%clk 0:00:44.3]}
29... Rcc2 {[%clk 0:01:21.7]} 30. Rh2 {[%clk 0:00:35.5]} 30... Rxa2 {[%clk
0:01:15.4]} 31. Rxa2 {[%clk 0:00:35.9]} 31... Rxa2 {[%clk 0:00:42.5]} 32. Rh1
{[%clk 0:00:35.7]} 32... Ra1+ {[%clk 0:00:41.3]} 33. Kg2 {[%clk 0:00:35.8]}
33... Ne1+ {[%clk 0:00:40]} 34. Rxe1 {[%clk 0:00:33.2]} 34... Rxe1 {[%clk
0:00:39.2]} 35. Nf4 {[%clk 0:00:32.8]} 35... Rb1 {[%clk 0:00:38.6]} 36. Nd3
{[%clk 0:00:30.8]} 36... Rxb3 {[%clk 0:00:37.9]} 37. Ne5 {[%clk 0:00:31.3]}
37... d5 {[%clk 0:00:36.7]} 38. Nc6 {[%clk 0:00:29.2]} 38... a5 {[%clk
0:00:34.4]} 39. Bd1 {[%clk 0:00:27]} 39... Rd3 {[%clk 0:00:30.2]} 40. Be2 {[%clk
0:00:25.2]} 40... Rd2 {[%clk 0:00:30]} 41. Kf3 {[%clk 0:00:24.4]} 41... a4
{[%clk 0:00:29.2]} 42. Nb4 {[%clk 0:00:14.5]} 42... a3 {[%clk 0:00:29.1]} 43.
Ke3 {[%clk 0:00:12.9]} 43... a2 {[%clk 0:00:29.3]} 44. Kxd2 {[%clk 0:00:10.1]}
44... a1=Q {[%clk 0:00:29]} 45. Nc2 {[%clk 0:00:10.5]} 45... Qb2 {[%clk
0:00:28.8]} 46. Bd3 {[%clk 0:00:09.6]} 46... b5 {[%clk 0:00:29.5]} 47. Kd1
{[%clk 0:00:07.9]} 47... b4 {[%clk 0:00:30]} 48. Nxb4 {[%clk 0:00:04.6]} 48...
Qxb4 {[%clk 0:00:29.9]} 49. Be2 {[%clk 0:00:03.9]} 49... d4 {[%clk 0:00:29.8]}
50. Bd3 {[%clk 0:00:03]} 50... Qc3 {[%clk 0:00:30.2]} 51. Ke2 {[%clk 0:00:02.9]}
51... Kf6 {[%clk 0:00:28.2]} 52. f4 {[%clk 0:00:02.7]} 52... Qb2+ {[%clk
0:00:27.2]} 53. Kf3 {[%clk 0:00:02.4]} 53... Qd2 {[%clk 0:00:27.3]} 0-1